fUSD/lending_fUSD_20260614
["ID","MTS","AMOUNT","RATE_DAILY","PERIOD"]
[425016932,1781434240000,-577.75642072,0.00023141,2]
[425016929,1781434240000,-5743.63463416,0.00023096,2]
[425016937,1781434240000,-185.12,0.00023232,2]
[425016934,1781434240000,-151.19,0.00023225,2]
[425016936,1781434240000,-644.02,0.00023232,2]
[425016935,1781434240000,-573.37,0.00023227,2]
[425016952,1781434240000,-10092.79349283,0.00023411,7]
[425016939,1781434240000,-573.37,0.00023232,2]
[425016949,1781434240000,-309.26,0.00023409,2]
[425016943,1781434240000,-185.12,0.00023233,2]
[425016942,1781434240000,-573.37,0.00023233,2]
[425016940,1781434240000,-396.17,0.00023232,2]
[425016945,1781434240000,-199.43831319,0.00023288,2]
[425016944,1781434240000,-500.0,0.00023258,2]
[425016941,1781434240000,-185.12,0.00023233,2]
[425016946,1781434240000,-153.9576714,0.0002329,2]
[425016947,1781434240000,-1342.96578998,0.00023304,2]
[425016948,1781434240000,-1848.99,0.00023384,120]
[425016950,1781434240000,-3824.45357486,0.00023411,7]
[425016951,1781434240000,-6746.78943302,0.00023411,7]
[425016938,1781434240000,-186.08,0.00023232,2]
[425016979,1781434240000,-573.27,0.00024053,2]
[425016991,1781434240000,-177.5,0.00024324,2]
[425016983,1781434240000,-598.11,0.00024055,2]
[425017017,1781434240000,-500.0,0.00024674,2]
[425017014,1781434240000,-1000.0,0.00024658,2]
[425017019,1781434240000,-505.21139094,0.00024782,2]
[425017020,1781434240000,-505.21139094,0.00024806,2]
[425017021,1781434240000,-1848.99,0.00024863,120]
[425017023,1781434240000,-246.2,0.00024869,2]
[425017024,1781434240000,-643.82,0.00024869,2]
[425017022,1781434240000,-573.37,0.00024869,2]
[425017031,1781434240000,-644.52,0.00024875,2]
[425017029,1781434240000,-505.21139094,0.00024872,2]
[425017027,1781434240000,-185.1,0.00024871,2]
[425016981,1781434240000,-185.11,0.00024053,2]
[425017025,1781434240000,-184.93,0.00024869,2]
[425017030,1781434240000,-482.27,0.00024875,2]
[425017032,1781434240000,-482.27,0.00024875,2]
[425017028,1781434240000,-573.16,0.00024871,2]
[425017033,1781434240000,-185.05,0.00024876,2]
[425017035,1781434240000,-644.12,0.00024876,2]
[425017040,1781434240000,-505.21139094,0.00024947,2]
[425017037,1781434240000,-482.13,0.00024877,2]
[425017039,1781434240000,-557.03907603,0.00024879,2]
[425017036,1781434240000,-185.11,0.00024876,2]
[425017041,1781434240000,-500.0,0.00024978,2]
[425017034,1781434240000,-482.27,0.00024876,2]
[425017038,1781434240000,-396.17,0.00024877,2]
[425017018,1781434240000,-505.21139094,0.00024737,2]
[425017015,1781434240000,-208.67,0.00024658,2]
[425017026,1781434240000,-396.13,0.00024869,2]
[425017012,1781434240000,-3010.07,0.00024658,2]
[425017016,1781434240000,-780.02,0.00024668,7]
[425016984,1781434240000,-573.37,0.00024055,2]
[425016986,1781434240000,-396.18,0.00024055,2]
[425016988,1781434240000,-5743.63463416,0.000241,2]
[425016987,1781434240000,-2349.62928751,0.000241,2]
[425016997,1781434240000,-1848.99,0.00024616,120]
[425016989,1781434240000,-1848.99,0.00024123,120]
[425016994,1781434240000,-208.222541,0.00024496,2]
[425016995,1781434240000,-181.08010149,0.00024496,2]
[425016993,1781434240000,-1848.99,0.0002437,120]
[425016990,1781434240000,-150.0,0.00024164,2]
[425016992,1781434240000,-425.32469423,0.00024336,2]
[425017000,1781434240000,-3557.0,0.00024646,2]
[425016996,1781434240000,-505.21139094,0.00024507,2]
[425016998,1781434240000,-505.21139094,0.00024629,2]
[425017013,1781434240000,-175.13,0.00024658,2]
[425017008,1781434240000,-150.0,0.00024646,2]
[425017005,1781434240000,-150.0,0.00024646,2]
[425017002,1781434240000,-519.0,0.00024646,2]
[425017003,1781434240000,-383.0,0.00024646,2]
[425016999,1781434240000,-1359.0,0.00024646,2]
[425017006,1781434240000,-419.0,0.00024646,2]
[425017004,1781434240000,-1228.0,0.00024646,2]
[425017001,1781434240000,-1275.0,0.00024646,2]
[425017011,1781434240000,-505.21139094,0.00024651,2]
[425017010,1781434240000,-934.0,0.00024646,2]
[425017009,1781434240000,-150.0,0.00024646,2]
[425017082,1781434241000,-573.37,0.00025691,2]
[425017084,1781434241000,-185.12,0.00025691,2]
[425017080,1781434241000,-185.12,0.00025691,2]
[425017086,1781434241000,-394.8,0.00025693,2]
[425017079,1781434241000,-396.17,0.00025691,2]
[425017073,1781434241000,-191.0,0.00025657,2]
[425017071,1781434241000,-161.70161404,0.00025592,2]
[425017077,1781434241000,-724.85,0.0002569,2]
[425017074,1781434241000,-350.0,0.00025674,6]
[425017075,1781434241000,-151.0,0.00025684,2]
[425017088,1781434241000,-396.17,0.00025697,2]
[425017078,1781434241000,-573.32,0.00025691,2]
[425017087,1781434241000,-396.17,0.00025697,2]
[425017095,1781434241000,-405.24,0.00025786,2]
[425017081,1781434241000,-396.17,0.00025691,2]
[425017085,1781434241000,-644.12,0.00025693,2]
[425017089,1781434241000,-396.17,0.00025698,2]
[425017091,1781434241000,-309.26,0.00025749,2]
[425017090,1781434241000,-185.12,0.00025698,2]
[425017099,1781434241000,-213.04687367,0.00025985,10]
[425017100,1781434241000,-81986.71741548,0.00025986,2]
[425017092,1781434241000,-716.69,0.00025786,2]
[425017093,1781434241000,-1062.66,0.00025786,2]
[425017094,1781434241000,-11499.62,0.00025786,2]
[425017097,1781434241000,-200.0,0.000259,2]
[425017096,1781434241000,-1848.99,0.00025849,120]
[425017076,1781434241000,-151.0,0.00025684,2]
[425017083,1781434241000,-573.38,0.00025691,2]
[425017072,1781434241000,-1848.99,0.00025603,120]
[425017098,1781434241000,-300.0,0.00025985,10]
[425017069,1781434241000,-382.62407009,0.00025591,2]
[425017042,1781434241000,-370.2,0.00025,2]
[425017043,1781434241000,-227.2,0.00025,2]
[425017044,1781434241000,-228.9,0.00025,2]
[425017055,1781434241000,-208.222541,0.00025044,2]
[425017053,1781434241000,-156.62,0.00025,2]
[425017054,1781434241000,-156.62,0.00025,2]
[425017056,1781434241000,-187.78006524,0.00025044,2]
[425017045,1781434241000,-201.6,0.00025,2]
[425017046,1781434241000,-3000.0,0.00025,2]
[425017049,1781434241000,-211.0,0.00025,2]
[425017052,1781434241000,-334.56207833,0.00025,2]
[425017047,1781434241000,-3000.0,0.00025,2]
[425017051,1781434241000,-190.0,0.00025,2]
[425017050,1781434241000,-246.0,0.00025,2]
[425017048,1781434241000,-2861.14,0.00025,2]
[425017057,1781434241000,-2349.62928751,0.00025105,2]
[425017059,1781434241000,-5743.63463416,0.00025105,2]
[425017063,1781434241000,-557.03907603,0.00025317,2]
[425017062,1781434241000,-155.29,0.00025291,120]
[425017066,1781434241000,-150.0,0.00025373,2]
[425017058,1781434241000,-500.0,0.00025105,2]
[425017060,1781434241000,-1848.99,0.0002511,120]
[425017061,1781434241000,-557.03907603,0.00025148,2]
[425017065,1781434241000,-1848.99,0.00025356,120]
[425017067,1781434241000,-209.20549805,0.00025397,2]
[425017064,1781434241000,-1674.0,0.0002535,2]
[425017068,1781434241000,-500.0,0.00025415,2]
[425017070,1781434241000,-208.222541,0.00025592,2]
[425017101,1781434241000,-151.0,0.00025986,2]
[425017120,1781434241000,-299.86121386,0.00026397,2]
[425017110,1781434241000,-500.0,0.00026177,2]
[425017133,1781434241000,-482.19,0.00026513,2]
[425017135,1781434241000,-571.85,0.00026513,2]
[425017134,1781434241000,-572.88,0.00026513,2]
[425017136,1781434241000,-252.55736706,0.00026514,2]
[425017140,1781434241000,-482.28,0.0002652,2]
[425017142,1781434241000,-6430.8693814,0.0002658,2]
[425017153,1781434241000,-156.62,0.00026771,2]
[425017152,1781434241000,-155.81688322,0.0002677,2]
[425017141,1781434241000,-395.9,0.0002652,2]
[425017146,1781434241000,-425.32469423,0.00026681,2]
[425017151,1781434241000,-1674.0,0.0002672,2]
[425017145,1781434241000,-150.0,0.00026641,2]
[425017143,1781434241000,-1848.99,0.00026589,120]
[425017144,1781434241000,-155.0,0.00026607,10]
[425017150,1781434241000,-208.222541,0.00026688,2]
[425017147,1781434241000,-159.51919706,0.00026681,2]
[425017148,1781434241000,-611.00714543,0.00026686,2]
[425017149,1781434241000,-244.40285817,0.00026686,2]
[425017154,1781434241000,-300.0,0.00026779,10]
[425017157,1781434241000,-300.0,0.0002678,10]
[425017158,1781434241000,-46430.16851454,0.0002678,2]
[425017159,1781434241000,-500.0,0.0002678,2]
[425017156,1781434241000,-500.0,0.00026779,2]
[425017161,1781434241000,-500.0,0.0002678,2]
[425017155,1781434241000,-724.85,0.00026779,2]
[425017162,1781434241000,-500.0,0.0002678,2]
[425017102,1781434241000,-300.0,0.00025999,10]
[425017131,1781434241000,-185.12,0.00026513,2]
[425017139,1781434241000,-644.12,0.00026519,2]
[425017137,1781434241000,-185.08,0.00026515,2]
[425017132,1781434241000,-645.76,0.00026513,2]
[425017106,1781434241000,-1848.99,0.00026096,120]
[425017105,1781434241000,-1505.03,0.00026027,2]
[425017104,1781434241000,-151.0,0.00026,2]
[425017112,1781434241000,-500.0,0.00026287,7]
[425017111,1781434241000,-336.21,0.00026238,120]
[425017108,1781434241000,-5743.63463416,0.0002611,2]
[425017103,1781434241000,-51866.28820409,0.00026,4]
[425017109,1781434241000,-208.222541,0.0002614,2]
[425017128,1781434241000,-153.58038588,0.00026512,2]
[425017107,1781434241000,-2349.62928751,0.0002611,2]
[425017114,1781434241000,-1848.99,0.00026342,120]
[425017115,1781434241000,-500.0,0.00026348,2]
[425017125,1781434241000,-161.85824153,0.0002651,2]
[425017118,1781434241000,-151.0,0.00026384,2]
[425017113,1781434241000,-177.5,0.00026296,2]
[425017119,1781434241000,-209.20549805,0.00026397,2]
[425017116,1781434241000,-151.0,0.00026384,2]
[425017138,1781434241000,-571.82,0.00026515,2]
[425017129,1781434241000,-643.65,0.00026513,2]
[425017127,1781434241000,-201.56488095,0.00026512,2]
[425017123,1781434241000,-573.25,0.00026506,2]
[425017130,1781434241000,-396.17,0.00026513,2]
[425017126,1781434241000,-482.27,0.0002651,2]
[425017121,1781434241000,-185.12,0.00026506,2]
[425017160,1781434241000,-500.0,0.0002678,2]
[425017117,1781434241000,-151.0,0.00026384,2]
[425017122,1781434241000,-185.12,0.00026506,2]
[425017124,1781434241000,-572.95,0.00026506,2]
[425017172,1781434242000,-1572.47452158,0.00026781,7]
[425017180,1781434242000,-10009.8688,0.00026806,2]
[425017169,1781434242000,-500.0,0.0002678,2]
[425017179,1781434242000,-22331.25726412,0.00026806,2]
[425017168,1781434242000,-724.85,0.0002678,2]
[425017166,1781434242000,-500.0,0.0002678,2]
[425017165,1781434242000,-500.0,0.0002678,2]
[425017163,1781434242000,-163.70767721,0.0002678,2]
[425017164,1781434242000,-163.70767721,0.0002678,2]
[425017167,1781434242000,-163.62521076,0.0002678,20]
[425017170,1781434242000,-169944.5066253,0.00026781,7]
[425017178,1781434242000,-151.0,0.00026781,2]
[425017181,1781434242000,-7649.0273414,0.00026814,2]
[425017173,1781434242000,-150.0,0.00026781,2]
[425017171,1781434242000,-137636.4104299,0.00026781,7]
[425017175,1781434242000,-151.0,0.00026781,2]
[425017174,1781434242000,-151.0,0.00026781,2]
[425017177,1781434242000,-151.0,0.00026781,2]
[425017176,1781434242000,-151.0,0.00026781,2]
[425017182,1781434242000,-1848.99,0.00026836,120]
[425017184,1781434242000,-150.9149692,0.00026849,2]
[425017187,1781434242000,-500.0,0.00026962,2]
[425017186,1781434242000,-152.0,0.00026891,3]
[425017183,1781434242000,-150.9149692,0.00026849,2]
[425017185,1781434242000,-192.37351573,0.00026849,2]
[425017188,1781434242000,-6707.0,0.00027,2]
[425017189,1781434242000,-712090.47824453,0.00027,10]
[425017206,1781434243000,-262.15000001,0.00024714,2]
[425017207,1781434243000,-36.4495366,0.00024714,2]
[425017208,1781434243000,-505.0,0.00023013,7]
[425017210,1781434243000,-181.10181006,0.00027,10]
[425017211,1781434243000,-1555.10002022,0.00027,10]
[425017209,1781434243000,-1044.36625337,0.00024714,2]
[425017214,1781434245000,-500.0,0.00018766,7]
[425017218,1781434245000,-336.67961948,0.00026123,2]
[425017217,1781434245000,-167.66057786,0.00026123,2]
[425017215,1781434245000,-500.0,0.00020958,7]
[425017216,1781434245000,-500.0,0.0002315,7]
[425017252,1781434246000,-1848.99,0.00027329,120]
[425017250,1781434246000,-201.95621089,0.00027297,5]
[425017249,1781434246000,-157.15908564,0.00027297,2]
[425017253,1781434246000,-482.27,0.00027335,2]
[425017248,1781434246000,-318.76563964,0.00027297,2]
[425017245,1781434246000,-2000.0,0.00027179,7]
[425017246,1781434246000,-208.222541,0.00027236,2]
[425017251,1781434246000,-158.2858011,0.000273,30]
[425017247,1781434246000,-10000.0,0.00027296,2]
[425017269,1781434246000,-500.0,0.00027395,2]
[425017258,1781434246000,-573.37,0.00027337,2]
[425017260,1781434246000,-780.02,0.00027337,7]
[425017256,1781434246000,-181.64168399,0.00027336,2]
[425017257,1781434246000,-573.37,0.00027336,2]
[425017259,1781434246000,-396.17,0.00027337,2]
[425017255,1781434246000,-181.64168399,0.00027336,2]
[425017261,1781434246000,-396.17,0.00027342,2]
[425017263,1781434246000,-255.0,0.00027367,2]
[425017262,1781434246000,-185.12,0.00027342,2]
[425017244,1781434246000,-5743.63463416,0.00027114,2]
[425017254,1781434246000,-644.02,0.00027335,2]
[425017243,1781434246000,-2349.62928751,0.00027114,2]
[425017231,1781434246000,-159.1102845,0.00027085,2]
[425017242,1781434246000,-157.12175185,0.00027094,7]
[425017220,1781434246000,-527.55707348,0.00026123,2]
[425017219,1781434246000,-311.06851916,0.00026123,2]
[425017221,1781434246000,-667259.49641239,0.00027,10]
[425017223,1781434246000,-151.0,0.00027,7]
[425017224,1781434246000,-151.0,0.00027,7]
[425017222,1781434246000,-10000.0,0.00027,7]
[425017226,1781434246000,-484.0,0.00027,10]
[425017225,1781434246000,-206.96,0.00027,7]
[425017228,1781434246000,-206.58818836,0.00027084,2]
[425017240,1781434246000,-171.34503035,0.00027085,7]
[425017238,1781434246000,-191.27966787,0.00027085,7]
[425017229,1781434246000,-158.23061378,0.00027085,7]
[425017230,1781434246000,-152.71258111,0.00027085,7]
[425017237,1781434246000,-183.95576347,0.00027085,7]
[425017236,1781434246000,-156.72755262,0.00027085,7]
[425017232,1781434246000,-174.43322277,0.00027085,7]
[425017233,1781434246000,-167.48760113,0.00027085,7]
[425017234,1781434246000,-189.49479245,0.00027085,7]
[425017239,1781434246000,-165.58902509,0.00027085,7]
[425017241,1781434246000,-218.13534813,0.00027093,7]
[425017227,1781434246000,-1848.99,0.00027082,120]
[425017271,1781434246000,-1109.60210298,0.00027396,25]
[425017235,1781434246000,-160.69482588,0.00027085,7]
[425017265,1781434246000,-13379.49573942,0.0002737,2]
[425017294,1781434246000,-500.0,0.00027397,2]
[425017298,1781434246000,-9781.59170132,0.00027397,2]
[425017299,1781434246000,-500.0,0.00027397,2]
[425017320,1781434246000,-500.0,0.00027397,2]
[425017300,1781434246000,-500.0,0.00027397,2]
[425017302,1781434246000,-500.0,0.00027397,2]
[425017301,1781434246000,-500.0,0.00027397,2]
[425017306,1781434246000,-500.0,0.00027397,2]
[425017307,1781434246000,-500.0,0.00027397,2]
[425017303,1781434246000,-500.0,0.00027397,2]
[425017314,1781434246000,-500.0,0.00027397,2]
[425017310,1781434246000,-614.66,0.00027397,2]
[425017309,1781434246000,-560.15515104,0.00027397,2]
[425017313,1781434246000,-205.53354974,0.00027397,2]
[425017315,1781434246000,-500.0,0.00027397,2]
[425017311,1781434246000,-500.0,0.00027397,2]
[425017316,1781434246000,-500.0,0.00027397,2]
[425017319,1781434246000,-500.0,0.00027397,2]
[425017318,1781434246000,-500.0,0.00027397,2]
[425017267,1781434246000,-500.0,0.00027395,2]
[425017312,1781434246000,-500.0,0.00027397,2]
[425017296,1781434246000,-214.83277436,0.00027397,2]
[425017308,1781434246000,-500.0,0.00027397,2]
[425017304,1781434246000,-500.0,0.00027397,2]
[425017305,1781434246000,-500.0,0.00027397,2]
[425017278,1781434246000,-500.0,0.00027396,2]
[425017275,1781434246000,-1004.18294962,0.00027396,2]
[425017273,1781434246000,-1004.18294962,0.00027396,2]
[425017277,1781434246000,-300.0,0.00027396,10]
[425017280,1781434246000,-500.0,0.00027396,2]
[425017279,1781434246000,-500.0,0.00027396,2]
[425017282,1781434246000,-500.0,0.00027396,2]
[425017284,1781434246000,-151.06,0.00027396,2]
[425017283,1781434246000,-500.0,0.00027396,2]
[425017288,1781434246000,-500.0,0.00027396,2]
[425017281,1781434246000,-500.0,0.00027396,2]
[425017285,1781434246000,-151.0,0.00027396,2]
[425017295,1781434246000,-259.13376513,0.00027397,2]
[425017289,1781434246000,-500.0,0.00027396,2]
[425017291,1781434246000,-300.0,0.00027396,10]
[425017292,1781434246000,-183.24362153,0.00027397,2]
[425017297,1781434246000,-150.77901463,0.00027397,2]
[425017287,1781434246000,-151.0,0.00027396,2]
[425017293,1781434246000,-500.0,0.00027397,2]
[425017290,1781434246000,-491.1193492,0.00027396,2]
[425017286,1781434246000,-151.0,0.00027396,2]
[425017343,1781434247000,-500.0,0.00027397,2]
[425017356,1781434247000,-500.0,0.00027397,2]
[425017350,1781434247000,-500.0,0.00027397,2]
[425017360,1781434247000,-391.51240837,0.00027397,2]
[425017349,1781434247000,-500.0,0.00027397,2]
[425017351,1781434247000,-500.0,0.00027397,2]
[425017352,1781434247000,-500.0,0.00027397,2]
[425017354,1781434247000,-500.0,0.00027397,2]
[425017358,1781434247000,-308.11073423,0.00027397,2]
[425017353,1781434247000,-629.17,0.00027397,2]
[425017359,1781434247000,-500.0,0.00027397,2]
[425017366,1781434247000,-500.0,0.00027397,2]
[425017357,1781434247000,-500.0,0.00027397,2]
[425017361,1781434247000,-500.0,0.00027397,2]
[425017367,1781434247000,-500.0,0.00027397,2]
[425017348,1781434247000,-500.0,0.00027397,2]
[425017363,1781434247000,-500.0,0.00027397,2]
[425017370,1781434247000,-500.0,0.00027397,2]
[425017364,1781434247000,-525.21,0.00027397,2]
[425017365,1781434247000,-500.0,0.00027397,2]
[425017369,1781434247000,-500.0,0.00027397,2]
[425017371,1781434247000,-500.0,0.00027397,2]
[425017355,1781434247000,-500.0,0.00027397,2]
[425017345,1781434247000,-500.0,0.00027397,2]
[425017323,1781434247000,-500.0,0.00027397,2]
[425017339,1781434247000,-500.0,0.00027397,2]
[425017321,1781434247000,-500.0,0.00027397,2]
[425017326,1781434247000,-500.0,0.00027397,2]
[425017368,1781434247000,-500.0,0.00027397,2]
[425017324,1781434247000,-500.0,0.00027397,2]
[425017325,1781434247000,-463.54354097,0.00027397,2]
[425017322,1781434247000,-500.0,0.00027397,2]
[425017336,1781434247000,-500.0,0.00027397,2]
[425017328,1781434247000,-500.0,0.00027397,2]
[425017327,1781434247000,-500.0,0.00027397,2]
[425017330,1781434247000,-500.0,0.00027397,2]
[425017331,1781434247000,-500.0,0.00027397,2]
[425017329,1781434247000,-500.0,0.00027397,2]
[425017332,1781434247000,-500.0,0.00027397,2]
[425017334,1781434247000,-500.0,0.00027397,2]
[425017335,1781434247000,-500.0,0.00027397,2]
[425017333,1781434247000,-500.0,0.00027397,2]
[425017337,1781434247000,-500.0,0.00027397,2]
[425017338,1781434247000,-537.56,0.00027397,2]
[425017347,1781434247000,-500.0,0.00027397,2]
[425017346,1781434247000,-521.91,0.00027397,2]
[425017340,1781434247000,-500.0,0.00027397,2]
[425017342,1781434247000,-500.0,0.00027397,2]
[425017344,1781434247000,-358.47837854,0.00027397,2]
[425017341,1781434247000,-500.0,0.00027397,2]
[425017373,1781434247000,-500.0,0.00027397,2]
[425017362,1781434247000,-500.0,0.00027397,2]
[425017374,1781434247000,-500.0,0.00027397,2]
[425017403,1781434247000,-500.0,0.00027397,2]
[425017404,1781434247000,-500.0,0.00027397,2]
[425017406,1781434247000,-500.0,0.00027397,2]
[425017407,1781434247000,-500.0,0.00027397,2]
[425017405,1781434247000,-500.0,0.00027397,2]
[425017408,1781434247000,-500.0,0.00027397,2]
[425017410,1781434247000,-500.0,0.00027397,2]
[425017411,1781434247000,-500.0,0.00027397,2]
[425017409,1781434247000,-500.0,0.00027397,2]
[425017422,1781434247000,-500.0,0.00027397,2]
[425017423,1781434247000,-500.0,0.00027397,2]
[425017413,1781434247000,-500.0,0.00027397,2]
[425017414,1781434247000,-500.0,0.00027397,2]
[425017415,1781434247000,-500.0,0.00027397,2]
[425017421,1781434247000,-500.0,0.00027397,2]
[425017419,1781434247000,-500.0,0.00027397,2]
[425017418,1781434247000,-531.55,0.00027397,2]
[425017416,1781434247000,-500.0,0.00027397,2]
[425017417,1781434247000,-500.0,0.00027397,2]
[425017420,1781434247000,-500.0,0.00027397,2]
[425017424,1781434247000,-523.52,0.00027397,2]
[425017425,1781434247000,-500.0,0.00027397,2]
[425017372,1781434247000,-500.0,0.00027397,2]
[425017400,1781434247000,-500.0,0.00027397,2]
[425017402,1781434247000,-500.0,0.00027397,2]
[425017412,1781434247000,-602.41,0.00027397,2]
[425017397,1781434247000,-500.0,0.00027397,2]
[425017398,1781434247000,-500.0,0.00027397,2]
[425017378,1781434247000,-500.0,0.00027397,2]
[425017381,1781434247000,-500.0,0.00027397,2]
[425017377,1781434247000,-500.0,0.00027397,2]
[425017379,1781434247000,-569.66,0.00027397,2]
[425017380,1781434247000,-500.0,0.00027397,2]
[425017376,1781434247000,-500.0,0.00027397,2]
[425017382,1781434247000,-500.0,0.00027397,2]
[425017383,1781434247000,-500.0,0.00027397,2]
[425017388,1781434247000,-500.0,0.00027397,2]
[425017389,1781434247000,-518.31,0.00027397,2]
[425017384,1781434247000,-500.0,0.00027397,2]
[425017375,1781434247000,-500.0,0.00027397,2]
[425017385,1781434247000,-500.0,0.00027397,2]
[425017386,1781434247000,-500.0,0.00027397,2]
[425017401,1781434247000,-438.0007459,0.00027397,2]
[425017396,1781434247000,-500.0,0.00027397,2]
[425017395,1781434247000,-500.0,0.00027397,2]
[425017393,1781434247000,-500.0,0.00027397,2]
[425017399,1781434247000,-500.0,0.00027397,2]
[425017390,1781434247000,-638.36,0.00027397,2]
[425017387,1781434247000,-500.0,0.00027397,2]
[425017391,1781434247000,-500.0,0.00027397,2]
[425017392,1781434247000,-500.0,0.00027397,2]
[425017394,1781434247000,-500.0,0.00027397,2]
[425017464,1781434248000,-500.0,0.00027397,2]
[425017450,1781434248000,-500.0,0.00027397,2]
[425017457,1781434248000,-500.0,0.00027397,2]
[425017456,1781434248000,-533.99852194,0.00027397,2]
[425017458,1781434248000,-500.0,0.00027397,2]
[425017459,1781434248000,-500.0,0.00027397,2]
[425017466,1781434248000,-500.0,0.00027397,2]
[425017452,1781434248000,-500.0,0.00027397,2]
[425017463,1781434248000,-516.16,0.00027397,2]
[425017460,1781434248000,-500.0,0.00027397,2]
[425017462,1781434248000,-500.0,0.00027397,2]
[425017467,1781434248000,-500.0,0.00027397,2]
[425017465,1781434248000,-500.0,0.00027397,2]
[425017469,1781434248000,-500.0,0.00027397,2]
[425017468,1781434248000,-500.0,0.00027397,2]
[425017470,1781434248000,-500.0,0.00027397,2]
[425017475,1781434248000,-500.0,0.00027397,2]
[425017472,1781434248000,-500.0,0.00027397,2]
[425017471,1781434248000,-500.0,0.00027397,2]
[425017476,1781434248000,-500.0,0.00027397,2]
[425017473,1781434248000,-517.2,0.00027397,2]
[425017474,1781434248000,-500.0,0.00027397,2]
[425017455,1781434248000,-500.0,0.00027397,2]
[425017461,1781434248000,-500.0,0.00027397,2]
[425017453,1781434248000,-559.98,0.00027397,2]
[425017478,1781434248000,-500.0,0.00027397,2]
[425017447,1781434248000,-500.0,0.00027397,2]
[425017426,1781434248000,-497.29150946,0.00027397,2]
[425017427,1781434248000,-636.28,0.00027397,2]
[425017434,1781434248000,-500.0,0.00027397,2]
[425017428,1781434248000,-500.0,0.00027397,2]
[425017430,1781434248000,-500.0,0.00027397,2]
[425017432,1781434248000,-500.0,0.00027397,2]
[425017431,1781434248000,-500.0,0.00027397,2]
[425017429,1781434248000,-500.0,0.00027397,2]
[425017433,1781434248000,-500.0,0.00027397,2]
[425017436,1781434248000,-500.0,0.00027397,2]
[425017435,1781434248000,-407.21119673,0.00027397,2]
[425017454,1781434248000,-500.0,0.00027397,2]
[425017437,1781434248000,-500.0,0.00027397,2]
[425017442,1781434248000,-500.0,0.00027397,2]
[425017444,1781434248000,-500.0,0.00027397,2]
[425017439,1781434248000,-500.0,0.00027397,2]
[425017441,1781434248000,-500.0,0.00027397,2]
[425017440,1781434248000,-500.0,0.00027397,2]
[425017443,1781434248000,-535.91531743,0.00027397,2]
[425017446,1781434248000,-165.56706652,0.00027397,2]
[425017448,1781434248000,-500.0,0.00027397,2]
[425017445,1781434248000,-500.0,0.00027397,2]
[425017449,1781434248000,-500.0,0.00027397,2]
[425017451,1781434248000,-500.0,0.00027397,2]
[425017438,1781434248000,-500.0,0.00027397,2]
[425017477,1781434248000,-500.0,0.00027397,2]
[425017504,1781434248000,-500.0,0.00027397,2]
[425017481,1781434248000,-500.0,0.00027397,2]
[425017510,1781434248000,-500.0,0.00027397,2]
[425017520,1781434248000,-500.0,0.00027397,2]
[425017519,1781434248000,-537.41,0.00027397,2]
[425017518,1781434248000,-500.0,0.00027397,2]
[425017509,1781434248000,-500.0,0.00027397,2]
[425017511,1781434248000,-500.0,0.00027397,2]
[425017513,1781434248000,-500.0,0.00027397,2]